[Event "Titled Tuesday Blitz November 14 Early 2023"]
[White "rikchessmx"]
[Black "Zoete, Roelant"]
[BlackFideId "40103269"]
[WhiteElo "2332"]
[BlackElo "2481"]
[Result "0-1"]
[Round "8"]
[TimeControl "180+1"]
[Date "2023.11.14"]
[WhiteClock "0:01:01"]
[BlackClock "0:00:59"]
[Board "123"]

1. e4 {[%clk 0:02:54]}  c5 {[%clk 0:02:59]} 2. Nf3 {[%clk 0:02:53]}  e6 {[%clk 0:02:58]} 3. d4 {[%clk 0:02:53]}  cxd4 {[%clk 0:02:59]} 4. Nxd4 {[%clk 0:02:54]}  Nf6 {[%clk 0:03:00]} 5. Nc3 {[%clk 0:02:54]}  Nc6 {[%clk 0:03:00]} 6. Nxc6 {[%clk 0:02:54]}  bxc6 {[%clk 0:03:01]} 7. Bd3 {[%clk 0:02:54]}  d5 {[%clk 0:03:00]} 8. O-O {[%clk 0:02:55]}  Bd6 {[%clk 0:02:58]} 9. Qe2 {[%clk 0:02:55]}  Qc7 {[%clk 0:02:59]} 10. f4 {[%clk 0:02:55]}  Bc5+ {[%clk 0:02:55]} 11. Kh1 {[%clk 0:02:54]}  h5 {[%clk 0:02:55]} 12. e5 {[%clk 0:02:51]}  Ng4 {[%clk 0:02:54]} 13. Na4 {[%clk 0:02:51]}  Be7 {[%clk 0:02:46]} 14. h3 {[%clk 0:02:51]}  Nh6 {[%clk 0:02:45]} 15. Qxh5 {[%clk 0:02:40]}  c5 {[%clk 0:02:37]} 16. Bb5+ {[%clk 0:02:32]}  Kf8 {[%clk 0:02:36]} 17. b3 {[%clk 0:02:29]}  Kg8 {[%clk 0:02:27]} 18. Qf3 {[%clk 0:02:19]}  c4 {[%clk 0:02:25]} 19. Bxc4 {[%clk 0:02:13]}  Bb7 {[%clk 0:02:12]} 20. Bd3 {[%clk 0:02:07]}  Rc8 {[%clk 0:01:40]} 21. Bd2 {[%clk 0:01:42]}  d4 {[%clk 0:01:25]} 22. Qg3 {[%clk 0:01:38]}  Nf5 {[%clk 0:01:20]} 23. Bxf5 {[%clk 0:01:38]}  exf5 {[%clk 0:01:21]} 24. Rac1 {[%clk 0:01:30]}  Be4 {[%clk 0:01:20]} 25. c3 {[%clk 0:01:29]}  Bh4 {[%clk 0:01:19]} 26. cxd4 {[%clk 0:01:23]}  Qxc1 {[%clk 0:01:01]} 27. Bxc1 {[%clk 0:01:09]}  Bxg3 {[%clk 0:01:01]} 28. Kg1 {[%clk 0:01:01]}  Rc2 {[%clk 0:00:59]} 0-1


[Site "https://www.chess.com"]

[Event "Titled Tuesday Blitz November 14 Early 2023"]
[White "Yurasova, Daria"]
[Black "Ruge, Edison"]
[WhiteFideId "34146919"]
[BlackFideId "4401000"]
[WhiteElo "2478"]
[BlackElo "2328"]
[Result "0-1"]
[Round "8"]
[TimeControl "180+1"]
[Date "2023.11.14"]
[WhiteClock "0:00:12"]
[BlackClock "0:00:24"]
[Board "124"]

1. d4 {[%clk 0:03:00]}  d5 {[%clk 0:02:58]} 2. Nf3 {[%clk 0:02:53]}  e6 {[%clk 0:02:58]} 3. Bf4 {[%clk 0:02:52]}  f5 {[%clk 0:02:58]} 4. e3 {[%clk 0:02:49]}  c6 {[%clk 0:02:59]} 5. Nbd2 {[%clk 0:02:49]}  Nf6 {[%clk 0:02:59]} 6. h3 {[%clk 0:02:49]}  Be7 {[%clk 0:02:59]} 7. Bd3 {[%clk 0:02:49]}  O-O {[%clk 0:03:00]} 8. Ne5 {[%clk 0:02:49]}  Bd7 {[%clk 0:03:00]} 9. Ndf3 {[%clk 0:02:49]}  Be8 {[%clk 0:03:00]} 10. c4 {[%clk 0:02:48]}  Ne4 {[%clk 0:03:00]} 11. O-O {[%clk 0:02:48]}  Nd7 {[%clk 0:02:59]} 12. Nxd7 {[%clk 0:02:46]}  Bxd7 {[%clk 0:02:58]} 13. Ne5 {[%clk 0:02:47]}  Be8 {[%clk 0:02:58]} 14. cxd5 {[%clk 0:02:41]}  exd5 {[%clk 0:02:57]} 15. Bxe4 {[%clk 0:02:37]}  fxe4 {[%clk 0:02:56]} 16. a3 {[%clk 0:02:35]}  Bg5 {[%clk 0:02:46]} 17. Bg3 {[%clk 0:02:32]}  Rc8 {[%clk 0:02:37]} 18. b4 {[%clk 0:02:32]}  Qe7 {[%clk 0:02:35]} 19. Qb3 {[%clk 0:02:31]}  Kh8 {[%clk 0:02:34]} 20. a4 {[%clk 0:02:29]}  Bh5 {[%clk 0:02:30]} 21. Rac1 {[%clk 0:02:26]}  a6 {[%clk 0:02:26]} 22. b5 {[%clk 0:02:25]}  axb5 {[%clk 0:02:26]} 23. axb5 {[%clk 0:02:25]}  Be2 {[%clk 0:02:26]} 24. bxc6 {[%clk 0:01:29]}  Bxf1 {[%clk 0:02:21]} 25. Kxf1 {[%clk 0:01:28]}  bxc6 {[%clk 0:02:19]} 26. Rxc6 {[%clk 0:01:23]}  Rxc6 {[%clk 0:02:00]} 27. Nxc6 {[%clk 0:01:24]}  Qd7 {[%clk 0:01:55]} 28. Ne5 {[%clk 0:01:21]}  Qe6 {[%clk 0:01:46]} 29. Kg1 {[%clk 0:01:21]}  h6 {[%clk 0:01:41]} 30. Qb7 {[%clk 0:01:20]}  Kh7 {[%clk 0:01:35]} 31. Ng4 {[%clk 0:01:09]}  h5 {[%clk 0:01:31]} 32. Ne5 {[%clk 0:00:58]}  h4 {[%clk 0:01:31]} 33. Bh2 {[%clk 0:00:59]}  Rc8 {[%clk 0:01:30]} 34. Bf4 {[%clk 0:00:42]}  Rc1+ {[%clk 0:01:20]} 35. Kh2 {[%clk 0:00:42]}  Bxf4+ {[%clk 0:01:20]} 36. exf4 {[%clk 0:00:43]}  Rc2 {[%clk 0:01:18]} 37. Nf7 {[%clk 0:00:32]}  Kg6 {[%clk 0:00:41]} 38. Ne5+ {[%clk 0:00:23]}  Kh7 {[%clk 0:00:40]} 39. Nf7 {[%clk 0:00:21]}  Qf6 {[%clk 0:00:38]} 40. Ng5+ {[%clk 0:00:18]}  Kg6 {[%clk 0:00:34]} 41. g3 {[%clk 0:00:16]}  Rxf2+ {[%clk 0:00:31]} 42. Kg1 {[%clk 0:00:16]}  hxg3 {[%clk 0:00:29]} 43. Qd7 {[%clk 0:00:15]}  Rxf4 {[%clk 0:00:26]} 44. Ne6 {[%clk 0:00:12]}  Rf1+ {[%clk 0:00:24]} 45. Kg2 {[%clk 0:00:12]}  Qf2# {[%clk 0:00:24]} 0-1


[Site "https://www.chess.com"]

[Event "Titled Tuesday Blitz November 14 Early 2023"]
[White "Shishkov, Andrei"]
[Black "Maect19"]
[WhiteFideId "4500563"]
[WhiteElo "2477"]
[BlackElo "2325"]
[Result "0-1"]
[Round "8"]
[TimeControl "180+1"]
[Date "2023.11.14"]
[WhiteClock "0:00:12"]
[BlackClock "0:00:17"]
[Board "125"]

1. d4 {[%clk 0:02:59]}  d5 {[%clk 0:02:59]} 2. c4 {[%clk 0:02:59]}  c6 {[%clk 0:02:59]} 3. e3 {[%clk 0:02:59]}  Nf6 {[%clk 0:02:59]} 4. Nc3 {[%clk 0:02:59]}  e6 {[%clk 0:02:48]} 5. b3 {[%clk 0:02:57]}  Bb4 {[%clk 0:02:46]} 6. Bb2 {[%clk 0:02:57]}  Ne4 {[%clk 0:02:45]} 7. Ne2 {[%clk 0:02:57]}  Qa5 {[%clk 0:02:41]} 8. Qc2 {[%clk 0:02:57]}  O-O {[%clk 0:02:38]} 9. f3 {[%clk 0:02:54]}  Nxc3 {[%clk 0:02:36]} 10. Nxc3 {[%clk 0:02:55]}  Nd7 {[%clk 0:02:29]} 11. a3 {[%clk 0:02:55]}  Bd6 {[%clk 0:02:28]} 12. Bd3 {[%clk 0:02:55]}  h6 {[%clk 0:02:27]} 13. O-O {[%clk 0:02:54]}  dxc4 {[%clk 0:02:21]} 14. bxc4 {[%clk 0:02:54]}  e5 {[%clk 0:02:20]} 15. Ne4 {[%clk 0:02:48]}  Bb8 {[%clk 0:02:14]} 16. f4 {[%clk 0:02:21]}  f5 {[%clk 0:02:02]} 17. fxe5 {[%clk 0:02:12]}  fxe4 {[%clk 0:01:59]} 18. Bxe4 {[%clk 0:02:13]}  Qb6 {[%clk 0:01:30]} 19. e6 {[%clk 0:01:48]}  Nf6 {[%clk 0:01:27]} 20. e7 {[%clk 0:01:46]}  Re8 {[%clk 0:01:26]} 21. Rxf6 {[%clk 0:01:35]}  gxf6 {[%clk 0:01:25]} 22. Bh7+ {[%clk 0:01:32]}  Kh8 {[%clk 0:01:07]} 23. Qg6 {[%clk 0:01:26]}  Bd7 {[%clk 0:00:50]} 24. Qxh6 {[%clk 0:01:21]}  Rxe7 {[%clk 0:00:44]} 25. Qf8+ {[%clk 0:00:29]}  Kxh7 {[%clk 0:00:39]} 26. Qxe7+ {[%clk 0:00:30]}  Kg8 {[%clk 0:00:35]} 27. Bc3 {[%clk 0:00:20]}  Qc7 {[%clk 0:00:25]} 28. g3 {[%clk 0:00:18]}  Qd6 {[%clk 0:00:24]} 29. Qd8+ {[%clk 0:00:17]}  Kf7 {[%clk 0:00:21]} 30. Bb4 {[%clk 0:00:17]}  Qe6 {[%clk 0:00:18]} 31. Qf8+ {[%clk 0:00:17]}  Kg6 {[%clk 0:00:19]} 32. Kf2 {[%clk 0:00:15]}  Bxg3+ {[%clk 0:00:17]} 33. hxg3 {[%clk 0:00:14]}  Rxf8 {[%clk 0:00:17]} 34. Bxf8 {[%clk 0:00:15]}  Qf5+ {[%clk 0:00:16]} 35. Ke2 {[%clk 0:00:12]}  Qc2+ {[%clk 0:00:17]} 0-1


[Site "https://www.chess.com"]

[Event "Titled Tuesday Blitz November 14 Early 2023"]
[White "Joie, Sebastien"]
[Black "Rodriguez Santiago, Jaime"]
[WhiteFideId "650420"]
[BlackFideId "3100898"]
[WhiteElo "2446"]
[BlackElo "2277"]
[Result "1-0"]
[Round "8"]
[TimeControl "180+1"]
[Date "2023.11.14"]
[WhiteClock "0:00:14"]
[BlackClock "0:00:03"]
[Board "129"]

1. d4 {[%clk 0:02:43]}  Nf6 {[%clk 0:02:57]} 2. c4 {[%clk 0:02:43]}  e6 {[%clk 0:02:56]} 3. Nc3 {[%clk 0:02:43]}  Bb4 {[%clk 0:02:55]} 4. Qc2 {[%clk 0:02:38]}  O-O {[%clk 0:02:53]} 5. e4 {[%clk 0:02:38]}  d5 {[%clk 0:02:53]} 6. e5 {[%clk 0:02:38]}  Ne4 {[%clk 0:02:53]} 7. Bd3 {[%clk 0:02:38]}  c5 {[%clk 0:02:50]} 8. Nf3 {[%clk 0:02:39]}  Nc6 {[%clk 0:02:45]} 9. O-O {[%clk 0:02:26]}  cxd4 {[%clk 0:02:20]} 10. Nxe4 {[%clk 0:02:23]}  dxe4 {[%clk 0:02:19]} 11. Bxe4 {[%clk 0:02:24]}  h6 {[%clk 0:02:13]} 12. Rd1 {[%clk 0:02:16]}  a5 {[%clk 0:01:56]} 13. Bf4 {[%clk 0:01:53]}  Bc5 {[%clk 0:01:49]} 14. a3 {[%clk 0:01:50]}  a4 {[%clk 0:01:46]} 15. Qd3 {[%clk 0:01:04]}  Ra6 {[%clk 0:01:22]} 16. g4 {[%clk 0:00:54]}  Rb6 {[%clk 0:01:18]} 17. Qc2 {[%clk 0:00:48]}  Rb3 {[%clk 0:00:59]} 18. g5 {[%clk 0:00:48]}  Rxf3 {[%clk 0:00:53]} 19. Bxf3 {[%clk 0:00:46]}  hxg5 {[%clk 0:00:51]} 20. Bg3 {[%clk 0:00:46]}  d3 {[%clk 0:00:31]} 21. Rxd3 {[%clk 0:00:41]}  Nd4 {[%clk 0:00:30]} 22. Qxa4 {[%clk 0:00:40]}  g4 {[%clk 0:00:19]} 23. Bxg4 {[%clk 0:00:21]}  Bd7 {[%clk 0:00:19]} 24. Qd1 {[%clk 0:00:20]}  Bc6 {[%clk 0:00:19]} 25. b4 {[%clk 0:00:18]}  Ba7 {[%clk 0:00:18]} 26. c5 {[%clk 0:00:18]}  Qg5 {[%clk 0:00:06]} 27. Rxd4 {[%clk 0:00:17]}  f5 {[%clk 0:00:05]} 28. exf6 {[%clk 0:00:17]}  e5 {[%clk 0:00:05]} 29. Be6+ {[%clk 0:00:14]}  Kh8 {[%clk 0:00:03]} 30. Rh4+ {[%clk 0:00:14]} 1-0


[Site "https://www.chess.com"]

[Event "Titled Tuesday Blitz November 14 Early 2023"]
[White "Khater, Sherif"]
[Black "Jarocka, Liwia"]
[WhiteFideId "2034280"]
[BlackFideId "21807558"]
[WhiteElo "2615"]
[BlackElo "2364"]
[Result "1-0"]
[Round "8"]
[TimeControl "180+1"]
[Date "2023.11.14"]
[WhiteClock "0:00:11"]
[BlackClock "0:00:12"]
[Board "134"]

1. d4 {[%clk 0:03:00]}  d6 {[%clk 0:02:58]} 2. e4 {[%clk 0:03:01]}  g6 {[%clk 0:02:58]} 3. Nc3 {[%clk 0:03:01]}  Bg7 {[%clk 0:02:52]} 4. Nf3 {[%clk 0:03:02]}  Nf6 {[%clk 0:02:51]} 5. Be3 {[%clk 0:03:03]}  O-O {[%clk 0:02:52]} 6. h3 {[%clk 0:03:03]}  Nbd7 {[%clk 0:02:48]} 7. Qd2 {[%clk 0:03:03]}  e5 {[%clk 0:02:48]} 8. dxe5 {[%clk 0:03:02]}  Nxe5 {[%clk 0:02:48]} 9. Nxe5 {[%clk 0:03:01]}  dxe5 {[%clk 0:02:48]} 10. O-O-O {[%clk 0:03:00]}  Qxd2+ {[%clk 0:02:48]} 11. Rxd2 {[%clk 0:03:01]}  Be6 {[%clk 0:02:47]} 12. f3 {[%clk 0:02:59]}  c6 {[%clk 0:02:47]} 13. Be2 {[%clk 0:02:59]}  Nd7 {[%clk 0:02:47]} 14. Rhd1 {[%clk 0:02:58]}  Nb6 {[%clk 0:02:47]} 15. g4 {[%clk 0:02:58]}  Bf6 {[%clk 0:02:47]} 16. g5 {[%clk 0:02:57]}  Be7 {[%clk 0:02:47]} 17. h4 {[%clk 0:02:57]}  Rfd8 {[%clk 0:02:46]} 18. f4 {[%clk 0:02:55]}  exf4 {[%clk 0:02:42]} 19. Bxf4 {[%clk 0:02:55]}  Rxd2 {[%clk 0:02:43]} 20. Rxd2 {[%clk 0:02:55]}  Rd8 {[%clk 0:02:42]} 21. Bd3 {[%clk 0:02:55]}  Rd7 {[%clk 0:02:36]} 22. Rf2 {[%clk 0:02:47]}  Bc5 {[%clk 0:02:31]} 23. Rf1 {[%clk 0:02:47]}  Nc4 {[%clk 0:02:29]} 24. e5 {[%clk 0:02:38]}  Ne3 {[%clk 0:02:21]} 25. Rf3 {[%clk 0:01:48]}  Nd5 {[%clk 0:02:10]} 26. Ne4 {[%clk 0:01:43]}  Be7 {[%clk 0:02:10]} 27. Bg3 {[%clk 0:01:30]}  Nb4 {[%clk 0:02:04]} 28. a3 {[%clk 0:01:28]}  Nxd3+ {[%clk 0:02:02]} 29. cxd3 {[%clk 0:01:22]}  Bf5 {[%clk 0:02:00]} 30. Kc2 {[%clk 0:01:11]}  Bxe4 {[%clk 0:01:57]} 31. dxe4 {[%clk 0:01:11]}  Bc5 {[%clk 0:01:53]} 32. Rd3 {[%clk 0:01:09]}  Rxd3 {[%clk 0:01:46]} 33. Kxd3 {[%clk 0:01:10]}  Kf8 {[%clk 0:01:45]} 34. Kc4 {[%clk 0:01:06]}  Bb6 {[%clk 0:01:45]} 35. a4 {[%clk 0:01:06]}  Ke7 {[%clk 0:01:44]} 36. b4 {[%clk 0:01:05]}  a6 {[%clk 0:01:42]} 37. a5 {[%clk 0:00:58]}  Bc7 {[%clk 0:01:41]} 38. Kd4 {[%clk 0:00:57]}  Ke6 {[%clk 0:01:40]} 39. Bf4 {[%clk 0:00:57]}  Bd8 {[%clk 0:01:39]} 40. Kc5 {[%clk 0:00:53]}  Be7+ {[%clk 0:01:29]} 41. Kc4 {[%clk 0:00:53]}  Bf8 {[%clk 0:01:17]} 42. Bg3 {[%clk 0:00:51]}  Kd7 {[%clk 0:01:14]} 43. Bf4 {[%clk 0:00:48]}  Be7 {[%clk 0:01:13]} 44. Bg3 {[%clk 0:00:48]}  Bd8 {[%clk 0:01:13]} 45. Bf4 {[%clk 0:00:47]}  b6 {[%clk 0:01:12]} 46. Bd2 {[%clk 0:00:34]}  Ke6 {[%clk 0:01:08]} 47. Bc3 {[%clk 0:00:33]}  Bc7 {[%clk 0:01:03]} 48. axb6 {[%clk 0:00:27]}  Bxb6 {[%clk 0:01:03]} 49. Bd4 {[%clk 0:00:23]}  Bd8 {[%clk 0:00:59]} 50. Kc5 {[%clk 0:00:21]}  Be7+ {[%clk 0:00:59]} 51. Kc4 {[%clk 0:00:20]}  Kd7 {[%clk 0:00:56]} 52. Bc5 {[%clk 0:00:20]}  Bd8 {[%clk 0:00:56]} 53. Bd6 {[%clk 0:00:18]}  Bb6 {[%clk 0:00:55]} 54. Bc5 {[%clk 0:00:19]}  Bc7 {[%clk 0:00:54]} 55. Bd4 {[%clk 0:00:19]}  Bb8 {[%clk 0:00:52]} 56. Kc5 {[%clk 0:00:17]}  Ba7+ {[%clk 0:00:43]} 57. Kc4 {[%clk 0:00:18]}  Bb8 {[%clk 0:00:42]} 58. Kc5 {[%clk 0:00:18]}  Bc7 {[%clk 0:00:43]} 59. Kc4 {[%clk 0:00:18]}  a5 {[%clk 0:00:40]} 60. bxa5 {[%clk 0:00:15]}  Bxa5 {[%clk 0:00:41]} 61. Kd3 {[%clk 0:00:14]}  Bc7 {[%clk 0:00:40]} 62. Ke3 {[%clk 0:00:15]}  Ke6 {[%clk 0:00:41]} 63. Kf4 {[%clk 0:00:15]}  Bb8 {[%clk 0:00:40]} 64. Bc3 {[%clk 0:00:16]}  c5 {[%clk 0:00:40]} 65. Bb2 {[%clk 0:00:16]}  c4 {[%clk 0:00:41]} 66. Bc3 {[%clk 0:00:15]}  Ba7 {[%clk 0:00:41]} 67. Kg4 {[%clk 0:00:15]}  Be3 {[%clk 0:00:41]} 68. Kf3 {[%clk 0:00:15]}  Bb6 {[%clk 0:00:38]} 69. Kf4 {[%clk 0:00:15]}  Bc7 {[%clk 0:00:28]} 70. Bd4 {[%clk 0:00:15]}  Bd8 {[%clk 0:00:26]} 71. Bc3 {[%clk 0:00:14]}  Be7 {[%clk 0:00:26]} 72. Ke3 {[%clk 0:00:14]}  Bc5+ {[%clk 0:00:25]} 73. Kf4 {[%clk 0:00:15]}  Kd7 {[%clk 0:00:26]} 74. Kg4 {[%clk 0:00:12]}  Kc6 {[%clk 0:00:25]} 75. Kf4 {[%clk 0:00:13]}  Kb5 {[%clk 0:00:25]} 76. e6 {[%clk 0:00:13]}  fxe6 {[%clk 0:00:25]} 77. Ke5 {[%clk 0:00:14]}  Bb4 {[%clk 0:00:25]} 78. Bd4 {[%clk 0:00:12]}  Be1 {[%clk 0:00:25]} 79. Kxe6 {[%clk 0:00:12]}  Bxh4 {[%clk 0:00:25]} 80. Kf6 {[%clk 0:00:13]}  h6 {[%clk 0:00:24]} 81. Kxg6 {[%clk 0:00:13]}  Bxg5 {[%clk 0:00:24]} 82. e5 {[%clk 0:00:13]}  Kc6 {[%clk 0:00:24]} 83. e6 {[%clk 0:00:13]}  Kd6 {[%clk 0:00:24]} 84. Kf7 {[%clk 0:00:13]}  Kd5 {[%clk 0:00:23]} 85. Bf6 {[%clk 0:00:13]}  c3 {[%clk 0:00:20]} 86. e7 {[%clk 0:00:13]}  c2 {[%clk 0:00:19]} 87. e8=Q {[%clk 0:00:12]}  c1=Q {[%clk 0:00:19]} 88. Qe6+ {[%clk 0:00:12]}  Kc5 {[%clk 0:00:12]} 89. Qc8+ {[%clk 0:00:11]}  Kb4 {[%clk 0:00:12]} 90. Qxc1 {[%clk 0:00:11]}  Bxf6 {[%clk 0:00:12]} 91. Qb1+ {[%clk 0:00:11]} 1-0


[Site "https://www.chess.com"]

[Event "Titled Tuesday Blitz November 14 Early 2023"]
[White "Kochiev, Ivan"]
[Black "Lebedev, Artem S."]
[WhiteFideId "2917890"]
[BlackFideId "34272747"]
[WhiteElo "2526"]
[BlackElo "2337"]
[Result "1/2-1/2"]
[Round "8"]
[TimeControl "180+1"]
[Date "2023.11.14"]
[WhiteClock "0:00:12"]
[BlackClock "0:00:05"]
[Board "137"]

1. e4 {[%clk 0:03:00]}  e5 {[%clk 0:02:59]} 2. Nf3 {[%clk 0:03:00]}  Nc6 {[%clk 0:02:58]} 3. d4 {[%clk 0:03:01]}  exd4 {[%clk 0:02:58]} 4. Bc4 {[%clk 0:03:02]}  Nf6 {[%clk 0:02:58]} 5. O-O {[%clk 0:03:03]}  Nxe4 {[%clk 0:02:58]} 6. Nc3 {[%clk 0:03:03]}  Nxc3 {[%clk 0:02:48]} 7. bxc3 {[%clk 0:03:02]}  d5 {[%clk 0:02:47]} 8. Bb5 {[%clk 0:02:58]}  dxc3 {[%clk 0:02:43]} 9. Nd4 {[%clk 0:02:35]}  Qd6 {[%clk 0:01:57]} 10. a4 {[%clk 0:02:27]}  Be7 {[%clk 0:01:46]} 11. Ba3 {[%clk 0:02:13]}  Qf6 {[%clk 0:01:01]} 12. Bxe7 {[%clk 0:01:44]}  Kxe7 {[%clk 0:00:53]} 13. Re1+ {[%clk 0:01:43]}  Kf8 {[%clk 0:00:40]} 14. Bxc6 {[%clk 0:00:55]}  bxc6 {[%clk 0:00:39]} 15. Re3 {[%clk 0:00:56]}  Bd7 {[%clk 0:00:36]} 16. Rf3 {[%clk 0:00:54]}  Qd6 {[%clk 0:00:29]} 17. Qd3 {[%clk 0:00:50]}  h5 {[%clk 0:00:23]} 18. Qxc3 {[%clk 0:00:40]}  Rh6 {[%clk 0:00:22]} 19. Nb3 {[%clk 0:00:34]}  Re8 {[%clk 0:00:18]} 20. Rg3 {[%clk 0:00:34]}  Rg6 {[%clk 0:00:16]} 21. Nc5 {[%clk 0:00:34]}  Bf5 {[%clk 0:00:10]} 22. Rb1 {[%clk 0:00:31]}  d4 {[%clk 0:00:09]} 23. Qc4 {[%clk 0:00:27]}  Be6 {[%clk 0:00:08]} 24. Qb4 {[%clk 0:00:16]}  Rxg3 {[%clk 0:00:07]} 25. hxg3 {[%clk 0:00:16]}  Kg8 {[%clk 0:00:07]} 26. Rd1 {[%clk 0:00:15]}  Rd8 {[%clk 0:00:06]} 27. c3 {[%clk 0:00:13]}  Qe5 {[%clk 0:00:02]} 28. cxd4 {[%clk 0:00:11]}  Qd5 {[%clk 0:00:02]} 29. Qc3 {[%clk 0:00:10]}  Rb8 {[%clk 0:00:02]} 30. Nd3 {[%clk 0:00:09]}  Rb3 {[%clk 0:00:02]} 31. Qc2 {[%clk 0:00:09]}  Qc4 {[%clk 0:00:02]} 32. Qxc4 {[%clk 0:00:06]}  Bxc4 {[%clk 0:00:03]} 33. Ne5 {[%clk 0:00:07]}  Bd5 {[%clk 0:00:03]} 34. Rc1 {[%clk 0:00:08]}  Ra3 {[%clk 0:00:02]} 35. Nxc6 {[%clk 0:00:08]}  Bxc6 {[%clk 0:00:03]} 36. Rxc6 {[%clk 0:00:09]}  Rxa4 {[%clk 0:00:04]} 37. Rxc7 {[%clk 0:00:09]}  Rxd4 {[%clk 0:00:04]} 38. Rxa7 {[%clk 0:00:10]}  g6 {[%clk 0:00:05]} 39. Ra8+ {[%clk 0:00:11]}  Kg7 {[%clk 0:00:05]} 40. f3 {[%clk 0:00:11]}  Rc4 {[%clk 0:00:05]} 41. Ra5 {[%clk 0:00:11]}  Rc3 {[%clk 0:00:06]} 42. Kh2 {[%clk 0:00:12]}  Rb3 {[%clk 0:00:06]} 43. Kh3 {[%clk 0:00:12]}  Rc3 {[%clk 0:00:07]} 44. g4 {[%clk 0:00:13]}  hxg4+ {[%clk 0:00:06]} 45. Kxg4 {[%clk 0:00:14]}  Rc4+ {[%clk 0:00:07]} 46. Kg3 {[%clk 0:00:14]}  Rb4 {[%clk 0:00:05]} 47. Rc5 {[%clk 0:00:12]} 1/2-1/2


[Site "https://www.chess.com"]

[Event "Titled Tuesday Blitz November 14 Early 2023"]
[White "Spichkin, Alexander"]
[Black "ploxoi"]
[WhiteFideId "4144074"]
[WhiteElo "2309"]
[BlackElo "2453"]
[Result "0-1"]
[Round "8"]
[TimeControl "180+1"]
[Date "2023.11.14"]
[WhiteClock "0:00:23"]
[BlackClock "0:01:40"]
[Board "139"]

1. f4 {[%clk 0:03:00]}  d5 {[%clk 0:03:00]} 2. Nf3 {[%clk 0:02:54]}  c5 {[%clk 0:03:00]} 3. e3 {[%clk 0:02:54]}  a6 {[%clk 0:02:58]} 4. b3 {[%clk 0:02:46]}  Nc6 {[%clk 0:02:58]} 5. Bb2 {[%clk 0:02:47]}  Nf6 {[%clk 0:02:59]} 6. Bd3 {[%clk 0:02:47]}  Bg4 {[%clk 0:02:58]} 7. h3 {[%clk 0:02:45]}  Bxf3 {[%clk 0:02:58]} 8. Qxf3 {[%clk 0:02:43]}  e6 {[%clk 0:02:56]} 9. O-O {[%clk 0:02:42]}  Bd6 {[%clk 0:02:55]} 10. a3 {[%clk 0:02:31]}  e5 {[%clk 0:02:53]} 11. e4 {[%clk 0:02:24]}  d4 {[%clk 0:02:44]} 12. f5 {[%clk 0:02:23]}  b5 {[%clk 0:02:44]} 13. a4 {[%clk 0:02:18]}  Nb4 {[%clk 0:02:41]} 14. axb5 {[%clk 0:02:15]}  axb5 {[%clk 0:02:34]} 15. Bxb5+ {[%clk 0:02:14]}  Ke7 {[%clk 0:02:34]} 16. Na3 {[%clk 0:02:13]}  h5 {[%clk 0:02:28]} 17. c3 {[%clk 0:02:05]}  Na6 {[%clk 0:02:24]} 18. Nc4 {[%clk 0:02:00]}  Nc7 {[%clk 0:02:23]} 19. Bc6 {[%clk 0:02:00]}  Rxa1 {[%clk 0:02:23]} 20. Rxa1 {[%clk 0:01:59]}  Qb8 {[%clk 0:02:24]} 21. Na5 {[%clk 0:01:46]}  Qb6 {[%clk 0:02:22]} 22. cxd4 {[%clk 0:01:39]}  cxd4 {[%clk 0:02:19]} 23. Qd3 {[%clk 0:01:38]}  Rb8 {[%clk 0:02:18]} 24. Ba4 {[%clk 0:01:31]}  Qxa5 {[%clk 0:02:14]} 25. Qc4 {[%clk 0:01:26]}  Qb4 {[%clk 0:02:12]} 26. Qc6 {[%clk 0:01:22]}  d3 {[%clk 0:02:09]} 27. Rc1 {[%clk 0:01:18]}  Qb6+ {[%clk 0:02:09]} 28. Kf1 {[%clk 0:01:10]}  Qxc6 {[%clk 0:02:05]} 29. Rxc6 {[%clk 0:01:07]}  Nxe4 {[%clk 0:02:05]} 30. Ke1 {[%clk 0:01:03]}  Nd5 {[%clk 0:01:59]} 31. Ra6 {[%clk 0:00:54]}  Nc5 {[%clk 0:01:50]} 32. Ra7+ {[%clk 0:00:53]}  Kf6 {[%clk 0:01:51]} 33. Bc6 {[%clk 0:00:50]}  Nb4 {[%clk 0:01:51]} 34. Bf3 {[%clk 0:00:44]}  g6 {[%clk 0:01:49]} 35. fxg6 {[%clk 0:00:41]}  fxg6 {[%clk 0:01:50]} 36. g4 {[%clk 0:00:39]}  hxg4 {[%clk 0:01:49]} 37. Bxg4 {[%clk 0:00:35]}  Nc2+ {[%clk 0:01:49]} 38. Kf2 {[%clk 0:00:34]}  Ne4+ {[%clk 0:01:47]} 39. Kg2 {[%clk 0:00:30]}  Nxd2 {[%clk 0:01:46]} 40. Ra6 {[%clk 0:00:29]}  Rd8 {[%clk 0:01:41]} 41. Ba3 {[%clk 0:00:27]}  Nxa3 {[%clk 0:01:41]} 42. b4 {[%clk 0:00:27]}  Ndc4 {[%clk 0:01:40]} 43. b5 {[%clk 0:00:23]}  Nxb5 {[%clk 0:01:40]} 0-1


[Site "https://www.chess.com"]

[Event "Titled Tuesday Blitz November 14 Early 2023"]
[White "alfianasybullina"]
[Black "LangesNasenhaar"]
[WhiteElo "2279"]
[BlackElo "2437"]
[Result "1-0"]
[Round "8"]
[TimeControl "180+1"]
[Date "2023.11.14"]
[WhiteClock "0:00:11"]
[BlackClock "0:00:00"]
[Board "140"]

1. d4 {[%clk 0:02:57]}  d5 {[%clk 0:02:59]} 2. Nf3 {[%clk 0:02:57]}  c5 {[%clk 0:02:58]} 3. c3 {[%clk 0:02:56]}  cxd4 {[%clk 0:02:55]} 4. cxd4 {[%clk 0:02:56]}  Nc6 {[%clk 0:02:54]} 5. Nc3 {[%clk 0:02:56]}  a6 {[%clk 0:02:53]} 6. Bf4 {[%clk 0:02:56]}  Bf5 {[%clk 0:02:51]} 7. Qb3 {[%clk 0:02:55]}  e6 {[%clk 0:02:40]} 8. Qxb7 {[%clk 0:02:45]}  Rc8 {[%clk 0:02:40]} 9. Qxa6 {[%clk 0:02:32]}  Bb4 {[%clk 0:02:36]} 10. e3 {[%clk 0:02:25]}  Nge7 {[%clk 0:02:36]} 11. a3 {[%clk 0:02:14]}  Ba5 {[%clk 0:02:20]} 12. Bb5 {[%clk 0:02:04]}  O-O {[%clk 0:02:19]} 13. Bxc6 {[%clk 0:02:04]}  Nxc6 {[%clk 0:02:18]} 14. O-O {[%clk 0:02:00]}  Bxc3 {[%clk 0:02:03]} 15. bxc3 {[%clk 0:02:00]}  Na5 {[%clk 0:02:00]} 16. Rac1 {[%clk 0:01:51]}  Nb3 {[%clk 0:01:59]} 17. Bd6 {[%clk 0:01:33]}  Ra8 {[%clk 0:01:27]} 18. Qc6 {[%clk 0:01:23]}  Nxc1 {[%clk 0:01:24]} 19. Rxc1 {[%clk 0:01:15]}  Re8 {[%clk 0:01:22]} 20. Bb4 {[%clk 0:01:15]}  f6 {[%clk 0:01:16]} 21. Qb5 {[%clk 0:01:12]}  Qc7 {[%clk 0:01:10]} 22. Nd2 {[%clk 0:01:08]}  h6 {[%clk 0:01:04]} 23. h3 {[%clk 0:01:08]}  Kh7 {[%clk 0:01:03]} 24. Qe2 {[%clk 0:01:06]}  e5 {[%clk 0:00:58]} 25. Qf3 {[%clk 0:01:03]}  Qd7 {[%clk 0:00:55]} 26. c4 {[%clk 0:00:57]}  exd4 {[%clk 0:00:49]} 27. cxd5 {[%clk 0:00:52]}  dxe3 {[%clk 0:00:43]} 28. fxe3 {[%clk 0:00:53]}  Bg6 {[%clk 0:00:34]} 29. d6 {[%clk 0:00:45]}  Rac8 {[%clk 0:00:32]} 30. Re1 {[%clk 0:00:36]}  Rc2 {[%clk 0:00:25]} 31. e4 {[%clk 0:00:36]}  Qc6 {[%clk 0:00:24]} 32. Qd3 {[%clk 0:00:29]}  Rc1 {[%clk 0:00:21]} 33. Rxc1 {[%clk 0:00:22]}  Qxc1+ {[%clk 0:00:22]} 34. Kh2 {[%clk 0:00:23]}  Qc6 {[%clk 0:00:23]} 35. Qd4 {[%clk 0:00:18]}  Qd7 {[%clk 0:00:11]} 36. Bc3 {[%clk 0:00:15]}  Re6 {[%clk 0:00:10]} 37. Bb4 {[%clk 0:00:15]}  f5 {[%clk 0:00:07]} 38. exf5 {[%clk 0:00:15]}  Bxf5 {[%clk 0:00:08]} 39. Nf3 {[%clk 0:00:15]}  Re4 {[%clk 0:00:05]} 40. Qb6 {[%clk 0:00:13]}  Qe6 {[%clk 0:00:03]} 41. Qc7 {[%clk 0:00:11]}  Qd5 {[%clk 0:00:00]} 42. Bc3 {[%clk 0:00:11]} 1-0


[Site "https://www.chess.com"]